[Event "*** SCC Grand Prix: Titled Tuesday Blitz"]
[Site "Chess.com"]
[Date "2020.06.02"]
[Round "6"]
[White "Orest_Vovk"]
[Black "pavelalexandru07"]
[Result "1-0"]
[WhiteElo "2387"]
[BlackElo "2124"]
[TimeControl "180+1"]
[EndTime "11:09:03 PDT"]
[Termination "Orest_Vovk won by resignation"]

1. h4 {[%clk 0:03:00.9]} 1... c5 {[%clk 0:02:48.3]} 2. h5 {[%clk 0:02:59.9]}
2... d5 {[%clk 0:02:46.7]} 3. e4 {[%clk 0:02:59.7]} 3... dxe4 {[%clk 0:02:44.1]}
4. Nc3 {[%clk 0:02:59.5]} 4... Nf6 {[%clk 0:02:42.9]} 5. Rh4 {[%clk 0:02:56.2]}
5... Nc6 {[%clk 0:02:35]} 6. Nxe4 {[%clk 0:02:52.3]} 6... Nxe4 {[%clk
0:02:31.6]} 7. Rxe4 {[%clk 0:02:52.2]} 7... e6 {[%clk 0:02:25.5]} 8. Bb5 {[%clk
0:02:43.4]} 8... Bd7 {[%clk 0:02:22.9]} 9. Nf3 {[%clk 0:02:40.9]} 9... a6 {[%clk
0:02:21.8]} 10. Be2 {[%clk 0:02:32.1]} 10... Qc7 {[%clk 0:02:00.9]} 11. d3
{[%clk 0:02:27.3]} 11... Bd6 {[%clk 0:01:58.2]} 12. h6 {[%clk 0:02:22.7]} 12...
gxh6 {[%clk 0:01:36.8]} 13. Bxh6 {[%clk 0:02:21.7]} 13... O-O-O {[%clk
0:01:36.5]} 14. Qd2 {[%clk 0:02:18.8]} 14... f5 {[%clk 0:01:18.7]} 15. Rh4
{[%clk 0:02:15.2]} 15... Ne5 {[%clk 0:00:55.8]} 16. Nxe5 {[%clk 0:02:08.3]}
16... Bxe5 {[%clk 0:00:56.7]} 17. Bf4 {[%clk 0:02:05.8]} 17... Bxf4 {[%clk
0:00:50.4]} 18. Qxf4 {[%clk 0:02:05]} 18... Qxf4 {[%clk 0:00:49.5]} 19. Rxf4
{[%clk 0:02:05.9]} 19... Rhg8 {[%clk 0:00:42.5]} 20. g3 {[%clk 0:02:05.3]} 20...
e5 {[%clk 0:00:39.4]} 21. Rh4 {[%clk 0:02:04.9]} 21... Rg7 {[%clk 0:00:38.5]}
22. O-O-O {[%clk 0:02:03.4]} 22... Bc6 {[%clk 0:00:35.7]} 23. Rh5 {[%clk
0:01:54.7]} 23... Rf8 {[%clk 0:00:33.8]} 24. Rg1 {[%clk 0:01:43.3]} 24... Kc7
{[%clk 0:00:26.7]} 25. b3 {[%clk 0:01:39.9]} 25... e4 {[%clk 0:00:20.8]} 26. Kd2
{[%clk 0:01:30.5]} 26... b6 {[%clk 0:00:18.4]} 27. Ke3 {[%clk 0:01:26.3]} 27...
Rgf7 {[%clk 0:00:15.9]} 28. Kf4 {[%clk 0:01:22.8]} 28... Rd7 {[%clk 0:00:10.7]}
29. Rd1 {[%clk 0:01:07.8]} 29... Rdf7 {[%clk 0:00:05.8]} 30. d4 {[%clk
0:01:04.4]} 30... cxd4 {[%clk 0:00:04.4]} 31. Rxd4 {[%clk 0:01:03.5]} 31... Kb7
{[%clk 0:00:04.1]} 32. Bc4 {[%clk 0:01:01.8]} 32... Rg7 {[%clk 0:00:02.6]} 33.
Be2 {[%clk 0:00:56.6]} 33... Rgf7 {[%clk 0:00:01.8]} 34. Rd6 {[%clk 0:00:55.7]}
34... Kc7 {[%clk 0:00:02.1]} 35. Rdh6 {[%clk 0:00:54.8]} 35... Bb7 {[%clk
0:00:02.8]} 36. Rxh7 {[%clk 0:00:54.5]} 36... Bc6 {[%clk 0:00:03.2]} 37. Rxf7+
{[%clk 0:00:53.6]} 37... Rxf7 {[%clk 0:00:04.1]} 38. Rxf5 {[%clk 0:00:53.6]}
38... Rxf5+ {[%clk 0:00:03.8]} 39. Kxf5 {[%clk 0:00:53.7]} 39... Kd6 {[%clk
0:00:04.4]} 40. Bxa6 {[%clk 0:00:52]} 40... Kc5 {[%clk 0:00:04.5]} 41. c3 {[%clk
0:00:47.4]} 41... Bd7+ {[%clk 0:00:04.6]} 42. Kxe4 {[%clk 0:00:46.7]} 42... b5
{[%clk 0:00:05.1]} 43. Bb7 {[%clk 0:00:44.2]} 43... Kb6 {[%clk 0:00:04.8]} 44.
Bd5 {[%clk 0:00:43.6]} 1-0

[Event "*** SCC Grand Prix: Titled Tuesday Blitz"]
[Site "Chess.com"]
[Date "2020.06.02"]
[Round "6"]
[White "crossingthestreet"]
[Black "mohssenbinaddi"]
[Result "1-0"]
[WhiteElo "2375"]
[BlackElo "2071"]
[TimeControl "180+1"]
[EndTime "11:09:06 PDT"]
[Termination "crossingthestreet won by resignation"]

1. d4 {[%clk 0:03:00.9]} 1... Nf6 {[%clk 0:02:59.3]} 2. c4 {[%clk 0:03:00.8]}
2... g6 {[%clk 0:02:58.7]} 3. Nc3 {[%clk 0:03:00.4]} 3... d5 {[%clk 0:02:59.3]}
4. Nf3 {[%clk 0:02:59.8]} 4... dxc4 {[%clk 0:02:58.1]} 5. e4 {[%clk 0:02:58.4]}
5... c5 {[%clk 0:02:46.2]} 6. Bxc4 {[%clk 0:02:50.5]} 6... cxd4 {[%clk
0:02:44.7]} 7. Nxd4 {[%clk 0:02:41.6]} 7... e5 {[%clk 0:02:39.7]} 8. Nf3 {[%clk
0:02:15.5]} 8... Qxd1+ {[%clk 0:02:38.1]} 9. Kxd1 {[%clk 0:02:16.4]} 9... Nc6
{[%clk 0:02:31.8]} 10. Ng5 {[%clk 0:02:16.3]} 10... Bb4 {[%clk 0:02:24.2]} 11.
Nxf7 {[%clk 0:01:42.7]} 11... Rf8 {[%clk 0:02:23.1]} 12. Ng5 {[%clk 0:01:41.2]}
12... h6 {[%clk 0:02:22.4]} 13. Nf3 {[%clk 0:01:15.9]} 13... Bxc3 {[%clk
0:02:19.2]} 14. bxc3 {[%clk 0:01:16.8]} 14... Nxe4 {[%clk 0:02:18.8]} 15. Bxh6
{[%clk 0:01:05]} 15... Nxf2+ {[%clk 0:01:24.4]} 16. Ke2 {[%clk 0:01:03.6]} 16...
Nxh1 {[%clk 0:01:21.8]} 17. Bxf8 {[%clk 0:01:03.7]} 17... Kxf8 {[%clk
0:01:20.7]} 18. Rxh1 {[%clk 0:01:04.6]} 18... e4 {[%clk 0:01:18.8]} 19. Ng5
{[%clk 0:01:01.5]} 19... Bf5 {[%clk 0:01:10.5]} 20. Rf1 {[%clk 0:00:55.7]} 20...
Ke7 {[%clk 0:01:04.2]} 21. Ke3 {[%clk 0:00:54.1]} 21... Ne5 {[%clk 0:01:03.7]}
22. Bd5 {[%clk 0:00:53.7]} 22... Ng4+ {[%clk 0:01:03.5]} 23. Kd4 {[%clk
0:00:53.2]} 23... Rd8 {[%clk 0:01:02]} 24. c4 {[%clk 0:00:52.7]} 24... b5 {[%clk
0:01:01.1]} 25. Nxe4 {[%clk 0:00:36.7]} 25... bxc4 {[%clk 0:00:58.7]} 26. Re1
{[%clk 0:00:24.3]} 26... Kf8 {[%clk 0:00:41.4]} 27. Kxc4 {[%clk 0:00:23.6]}
27... Nxh2 {[%clk 0:00:32.3]} 28. Nc5 {[%clk 0:00:23.6]} 28... Rc8 {[%clk
0:00:26.5]} 29. Rb1 {[%clk 0:00:21.9]} 29... Ng4 {[%clk 0:00:25]} 30. Rb3 {[%clk
0:00:20.3]} 30... Ne5+ {[%clk 0:00:23.9]} 31. Kd4 {[%clk 0:00:20.4]} 31... Nf7
{[%clk 0:00:17.7]} 32. Rb7 {[%clk 0:00:19]} 32... Nd6 {[%clk 0:00:16.3]} 33. Rh7
{[%clk 0:00:17.5]} 33... Nb5+ {[%clk 0:00:16.3]} 34. Kc4 {[%clk 0:00:15.6]}
34... Nd6+ {[%clk 0:00:16.4]} 35. Kb4 {[%clk 0:00:15.2]} 35... Rb8+ {[%clk
0:00:15.5]} 36. Kc3 {[%clk 0:00:14.3]} 36... a5 {[%clk 0:00:15]} 37. Rh8+ {[%clk
0:00:13.7]} 37... Ke7 {[%clk 0:00:14.8]} 38. Rxb8 {[%clk 0:00:14.3]} 1-0

[Event "*** SCC Grand Prix: Titled Tuesday Blitz"]
[Site "Chess.com"]
[Date "2020.06.02"]
[Round "6"]
[White "ahappypawn"]
[Black "larisakalinina"]
[Result "1-0"]
[WhiteElo "2364"]
[BlackElo "1977"]
[TimeControl "180+1"]
[EndTime "11:09:06 PDT"]
[Termination "ahappypawn won on time"]

1. d4 {[%clk 0:03:00.9]} 1... c5 {[%clk 0:02:58.8]} 2. d5 {[%clk 0:03:00.2]}
2... e6 {[%clk 0:02:57.6]} 3. c4 {[%clk 0:03:00.6]} 3... exd5 {[%clk 0:02:57.9]}
4. cxd5 {[%clk 0:03:01.5]} 4... d6 {[%clk 0:02:58.1]} 5. Nc3 {[%clk 0:03:01.8]}
5... Nf6 {[%clk 0:02:58.4]} 6. e4 {[%clk 0:03:02]} 6... g6 {[%clk 0:02:58.4]} 7.
Bb5+ {[%clk 0:03:01.9]} 7... Nbd7 {[%clk 0:02:54.9]} 8. f4 {[%clk 0:03:01.1]}
8... a6 {[%clk 0:02:53.3]} 9. Bd3 {[%clk 0:02:57]} 9... Bg7 {[%clk 0:02:51.3]}
10. Nf3 {[%clk 0:02:54.7]} 10... O-O {[%clk 0:02:48.4]} 11. a4 {[%clk
0:02:53.7]} 11... Rb8 {[%clk 0:02:33.5]} 12. O-O {[%clk 0:02:49.9]} 12... Qc7
{[%clk 0:02:10.7]} 13. Re1 {[%clk 0:02:38.8]} 13... c4 {[%clk 0:02:09.8]} 14.
Bc2 {[%clk 0:02:31.3]} 14... Nc5 {[%clk 0:02:01.9]} 15. e5 {[%clk 0:02:24.8]}
15... Nfd7 {[%clk 0:02:01.3]} 16. e6 {[%clk 0:02:08.5]} 16... Nf6 {[%clk
0:01:59]} 17. Ng5 {[%clk 0:01:54.5]} 17... fxe6 {[%clk 0:01:41.9]} 18. dxe6
{[%clk 0:01:31.2]} 18... Nxe6 {[%clk 0:01:29.8]} 19. Nxe6 {[%clk 0:01:29.2]}
19... Bxe6 {[%clk 0:01:28.7]} 20. Rxe6 {[%clk 0:01:29.2]} 20... Rbe8 {[%clk
0:01:18]} 21. Qe2 {[%clk 0:01:16.4]} 21... Qc5+ {[%clk 0:01:13.7]} 22. Kh1
{[%clk 0:01:04.7]} 22... Kh8 {[%clk 0:00:45.6]} 23. Bd2 {[%clk 0:00:54.9]} 23...
Rxe6 {[%clk 0:00:43.2]} 24. Qxe6 {[%clk 0:00:55.2]} 24... Re8 {[%clk 0:00:43.4]}
25. Qh3 {[%clk 0:00:55.2]} 25... Nh5 {[%clk 0:00:20.2]} 26. Qf3 {[%clk
0:00:43.1]} 26... Qd4 {[%clk 0:00:13.9]} 27. Re1 {[%clk 0:00:27.8]} 27... Rf8
{[%clk 0:00:10.2]} 28. Be3 {[%clk 0:00:25.2]} 28... Qf6 {[%clk 0:00:10.3]} 29.
g3 {[%clk 0:00:20.8]} 29... b5 {[%clk 0:00:08.7]} 30. axb5 {[%clk 0:00:19.5]}
30... axb5 {[%clk 0:00:08.9]} 31. Rd1 {[%clk 0:00:16.2]} 31... b4 {[%clk
0:00:07.6]} 32. Bd4 {[%clk 0:00:16.1]} 32... Qe7 {[%clk 0:00:06.1]} 33. Nd5
{[%clk 0:00:15.1]} 33... Qb7 {[%clk 0:00:03.3]} 34. Bxg7+ {[%clk 0:00:14.4]}
34... Nxg7 {[%clk 0:00:01.7]} 35. Be4 {[%clk 0:00:14.1]} 1-0

[Event "*** SCC Grand Prix: Titled Tuesday Blitz"]
[Site "Chess.com"]
[Date "2020.06.02"]
[Round "6"]
[White "Tsyhanchuk_Stanislav"]
[Black "CrazyMartian"]
[Result "0-1"]
[WhiteElo "2438"]
[BlackElo "2308"]
[TimeControl "180+1"]
[EndTime "11:09:07 PDT"]
[Termination "CrazyMartian won by resignation"]

1. e4 {[%clk 0:03:00.7]} 1... c5 {[%clk 0:02:59.8]} 2. Nf3 {[%clk 0:03:00.7]}
2... d6 {[%clk 0:02:59.5]} 3. d4 {[%clk 0:03:00.7]} 3... cxd4 {[%clk 0:03:00]}
4. Nxd4 {[%clk 0:03:01.2]} 4... Nf6 {[%clk 0:03:00.3]} 5. Nc3 {[%clk 0:03:01.4]}
5... a6 {[%clk 0:03:00.8]} 6. Be3 {[%clk 0:03:01.1]} 6... e5 {[%clk 0:03:00.8]}
7. Nb3 {[%clk 0:03:01.1]} 7... Be7 {[%clk 0:03:01.1]} 8. Qd2 {[%clk 0:03:00.4]}
8... Be6 {[%clk 0:03:01.6]} 9. f4 {[%clk 0:02:59.9]} 9... exf4 {[%clk
0:02:53.7]} 10. Bxf4 {[%clk 0:02:59.7]} 10... Nc6 {[%clk 0:02:51.8]} 11. O-O-O
{[%clk 0:02:59.8]} 11... Ne5 {[%clk 0:02:51.6]} 12. Nd4 {[%clk 0:02:58.8]} 12...
O-O {[%clk 0:02:49.9]} 13. Nf5 {[%clk 0:02:58.4]} 13... Bxf5 {[%clk 0:02:48.6]}
14. exf5 {[%clk 0:02:58.3]} 14... Re8 {[%clk 0:02:42.3]} 15. h3 {[%clk
0:02:54.9]} 15... b5 {[%clk 0:02:39.2]} 16. g4 {[%clk 0:02:48]} 16... b4 {[%clk
0:02:38.5]} 17. Nd5 {[%clk 0:02:47.7]} 17... Nxd5 {[%clk 0:02:37.6]} 18. Qxd5
{[%clk 0:02:47.5]} 18... Bg5 {[%clk 0:02:35.9]} 19. Bxg5 {[%clk 0:02:41.6]}
19... Qxg5+ {[%clk 0:02:36.8]} 20. Kb1 {[%clk 0:02:42.5]} 20... Nd7 {[%clk
0:01:07.5]} 21. Bc4 {[%clk 0:02:32]} 21... Rf8 {[%clk 0:00:56.4]} 22. Qxd6
{[%clk 0:02:28.9]} 22... Nf6 {[%clk 0:00:54.3]} 23. Qd2 {[%clk 0:02:09.5]} 23...
h6 {[%clk 0:00:45.6]} 24. Qxg5 {[%clk 0:02:00.6]} 24... hxg5 {[%clk 0:00:46.5]}
25. Rhe1 {[%clk 0:01:59.8]} 25... Rfe8 {[%clk 0:00:40.9]} 26. Rxe8+ {[%clk
0:01:54]} 26... Rxe8 {[%clk 0:00:40.6]} 27. Bxa6 {[%clk 0:01:54.1]} 27... Re3
{[%clk 0:00:39.6]} 28. Bf1 {[%clk 0:01:49]} 28... Ne4 {[%clk 0:00:36]} 29. a4
{[%clk 0:01:42]} 29... bxa3 {[%clk 0:00:33.7]} 30. bxa3 {[%clk 0:01:41.8]} 30...
Nc3+ {[%clk 0:00:33.5]} 31. Kc1 {[%clk 0:01:41.3]} 31... Nxd1 {[%clk 0:00:32.1]}
32. Kxd1 {[%clk 0:01:41.7]} 32... Rxa3 {[%clk 0:00:32.4]} 33. Kd2 {[%clk
0:01:41.8]} 33... Kf8 {[%clk 0:00:32.5]} 34. c3 {[%clk 0:01:40.3]} 34... Ke7
{[%clk 0:00:32.5]} 35. Bc4 {[%clk 0:01:40]} 35... f6 {[%clk 0:00:32.3]} 36. Kd3
{[%clk 0:01:38.7]} 36... Kd6 {[%clk 0:00:32.6]} 37. Bf7 {[%clk 0:01:34.5]} 37...
Kc5 {[%clk 0:00:31.2]} 38. Be6 {[%clk 0:01:32]} 38... Ra1 {[%clk 0:00:31]} 39.
Bf7 {[%clk 0:01:30.9]} 39... Rh1 {[%clk 0:00:30.7]} 40. Ke4 {[%clk 0:01:23.7]}
40... Rxh3 {[%clk 0:00:30.5]} 41. c4 {[%clk 0:01:23.4]} 41... Rg3 {[%clk
0:00:30]} 42. Bh5 {[%clk 0:01:21.7]} 42... Kxc4 {[%clk 0:00:28.9]} 43. Bf7+
{[%clk 0:01:20.6]} 43... Kc5 {[%clk 0:00:28.4]} 44. Bh5 {[%clk 0:01:20.4]} 44...
Kd6 {[%clk 0:00:28.6]} 45. Kd4 {[%clk 0:01:20.2]} 45... Rf3 {[%clk 0:00:28.5]}
46. Ke4 {[%clk 0:01:19.7]} 46... Rf4+ {[%clk 0:00:28.7]} 47. Ke3 {[%clk
0:01:20.4]} 47... Ke5 {[%clk 0:00:28.9]} 48. Ke2 {[%clk 0:01:17.5]} 48... Ke4
{[%clk 0:00:27.8]} 49. Be8 {[%clk 0:01:16.1]} 49... Rxg4 {[%clk 0:00:26.4]} 50.
Bc6+ {[%clk 0:01:16.4]} 50... Kxf5 {[%clk 0:00:25.2]} 51. Bd7+ {[%clk
0:01:16.6]} 51... Kf4 {[%clk 0:00:25.4]} 52. Bxg4 {[%clk 0:01:15.6]} 52... Kxg4
{[%clk 0:00:25.6]} 53. Ke3 {[%clk 0:01:16.1]} 53... f5 {[%clk 0:00:26.5]} 54.
Kf2 {[%clk 0:01:16.5]} 54... f4 {[%clk 0:00:27.4]} 55. Kg2 {[%clk 0:01:17]}
55... f3+ {[%clk 0:00:28.3]} 56. Kf2 {[%clk 0:01:17.5]} 56... Kf4 {[%clk
0:00:29.2]} 57. Kf1 {[%clk 0:01:18]} 57... g4 {[%clk 0:00:30.1]} 58. Kg1 {[%clk
0:01:18.7]} 58... g3 {[%clk 0:00:31]} 59. Kf1 {[%clk 0:01:19.5]} 59... Ke3
{[%clk 0:00:31.4]} 60. Ke1 {[%clk 0:01:20]} 60... g2 {[%clk 0:00:31.2]} 0-1

[Event "*** SCC Grand Prix: Titled Tuesday Blitz"]
[Site "Chess.com"]
[Date "2020.06.02"]
[Round "6"]
[White "avantage_ru"]
[Black "LedakovAlexandr"]
[Result "1-0"]
[WhiteElo "2719"]
[BlackElo "2496"]
[TimeControl "180+1"]
[EndTime "11:09:09 PDT"]
[Termination "avantage_ru won on time"]

1. b3 {[%clk 0:03:00.9]} 1... Nc6 {[%clk 0:02:59.4]} 2. Bb2 {[%clk 0:03:00.7]}
2... d6 {[%clk 0:03:00.3]} 3. c4 {[%clk 0:02:58.9]} 3... Nf6 {[%clk 0:03:00.8]}
4. Bxf6 {[%clk 0:02:56.8]} 4... gxf6 {[%clk 0:02:58.2]} 5. Nc3 {[%clk
0:02:56.5]} 5... Bg7 {[%clk 0:02:57.9]} 6. e3 {[%clk 0:02:56.6]} 6... O-O {[%clk
0:02:58.5]} 7. g3 {[%clk 0:02:56.3]} 7... f5 {[%clk 0:02:58.3]} 8. Nge2 {[%clk
0:02:56.1]} 8... e6 {[%clk 0:02:57]} 9. Bg2 {[%clk 0:02:55.9]} 9... Ne7 {[%clk
0:02:56.8]} 10. O-O {[%clk 0:02:55.4]} 10... Ng6 {[%clk 0:02:57.2]} 11. d4
{[%clk 0:02:55.5]} 11... Qe7 {[%clk 0:02:56]} 12. b4 {[%clk 0:02:54.3]} 12... c5
{[%clk 0:02:55.2]} 13. a3 {[%clk 0:02:49.6]} 13... cxd4 {[%clk 0:02:44]} 14.
Nxd4 {[%clk 0:02:47.6]} 14... Rd8 {[%clk 0:02:41.9]} 15. Rc1 {[%clk 0:02:46.1]}
15... Rb8 {[%clk 0:02:39.8]} 16. Qe2 {[%clk 0:02:41.4]} 16... Bd7 {[%clk
0:02:35.8]} 17. Rfd1 {[%clk 0:02:40.9]} 17... a6 {[%clk 0:02:35.1]} 18. Nb3
{[%clk 0:02:34.5]} 18... Be8 {[%clk 0:02:30.9]} 19. Na5 {[%clk 0:02:33.6]} 19...
Qc7 {[%clk 0:02:29.4]} 20. Qd2 {[%clk 0:02:25.7]} 20... Ne5 {[%clk 0:02:23.4]}
21. f4 {[%clk 0:02:15.2]} 21... b6 {[%clk 0:02:16.2]} 22. fxe5 {[%clk
0:02:08.2]} 22... dxe5 {[%clk 0:02:15.9]} 23. Nd5 {[%clk 0:02:01.1]} 23... exd5
{[%clk 0:02:02.2]} 24. cxd5 {[%clk 0:02:00.8]} 24... Qd6 {[%clk 0:01:38.4]} 25.
Nc6 {[%clk 0:01:49.8]} 25... Bxc6 {[%clk 0:00:47.3]} 26. Rxc6 {[%clk 0:01:50.7]}
26... Qxc6 {[%clk 0:00:31.7]} 27. dxc6 {[%clk 0:01:51.6]} 27... Rxd2 {[%clk
0:00:31.4]} 28. Rxd2 {[%clk 0:01:52.4]} 28... Rc8 {[%clk 0:00:28.9]} 29. Rc2
{[%clk 0:01:42.4]} 29... Rc7 {[%clk 0:00:15.2]} 30. Bh3 {[%clk 0:01:40.4]} 30...
f4 {[%clk 0:00:15]} 31. exf4 {[%clk 0:01:39.5]} 31... exf4 {[%clk 0:00:15.9]}
32. gxf4 {[%clk 0:01:29.5]} 32... Bf8 {[%clk 0:00:16]} 33. Bd7 {[%clk
0:01:22.7]} 33... Kg7 {[%clk 0:00:14.1]} 34. Kg2 {[%clk 0:01:21.7]} 34... a5
{[%clk 0:00:13.9]} 35. bxa5 {[%clk 0:01:18.6]} 35... bxa5 {[%clk 0:00:14.8]} 36.
a4 {[%clk 0:01:18.8]} 36... Bd6 {[%clk 0:00:15]} 37. Kf3 {[%clk 0:01:18.5]}
37... Kf6 {[%clk 0:00:15.3]} 38. Rd2 {[%clk 0:01:16.2]} 38... Bb4 {[%clk
0:00:14.9]} 39. Rd5 {[%clk 0:01:15.7]} 39... Kg7 {[%clk 0:00:13.4]} 40. Kg4
{[%clk 0:01:11.5]} 40... h6 {[%clk 0:00:13.1]} 41. Kf5 {[%clk 0:01:11.2]} 41...
Ra7 {[%clk 0:00:09.2]} 42. Rb5 {[%clk 0:01:09.9]} 42... Rc7 {[%clk 0:00:08]} 43.
h3 {[%clk 0:01:09.7]} 43... Kf8 {[%clk 0:00:05.9]} 44. Ke5 {[%clk 0:01:06.5]}
44... Ke7 {[%clk 0:00:05.2]} 45. Kd5 {[%clk 0:01:05.8]} 45... Bd6 {[%clk
0:00:05.1]} 46. Rxa5 {[%clk 0:01:03]} 46... Bxf4 {[%clk 0:00:05.3]} 47. Ra8
{[%clk 0:01:02.5]} 47... Bd2 {[%clk 0:00:04.7]} 48. a5 {[%clk 0:00:58.9]} 48...
Be3 {[%clk 0:00:04.3]} 49. Re8+ {[%clk 0:00:57.1]} 49... Kf6 {[%clk 0:00:03.6]}
50. Rxe3 {[%clk 0:00:58]} 50... Ra7 {[%clk 0:00:03.1]} 51. Ra3 {[%clk
0:00:57.7]} 1-0

[Event "*** SCC Grand Prix: Titled Tuesday Blitz"]
[Site "Chess.com"]
[Date "2020.06.02"]
[Round "6"]
[White "medalja"]
[Black "Korchmar_Vasiliy"]
[Result "0-1"]
[WhiteElo "2422"]
[BlackElo "2592"]
[TimeControl "180+1"]
[EndTime "11:09:09 PDT"]
[Termination "Korchmar_Vasiliy won by checkmate"]

1. d4 {[%clk 0:03:00.9]} 1... Nf6 {[%clk 0:02:59.7]} 2. c4 {[%clk 0:03:00.4]}
2... e6 {[%clk 0:03:00.1]} 3. Nf3 {[%clk 0:02:59.8]} 3... d5 {[%clk 0:03:00.3]}
4. g3 {[%clk 0:02:59.1]} 4... Bb4+ {[%clk 0:03:00.8]} 5. Bd2 {[%clk 0:02:58.7]}
5... Bd6 {[%clk 0:03:01.4]} 6. Nc3 {[%clk 0:02:58.9]} 6... c6 {[%clk 0:02:58.2]}
7. Qc2 {[%clk 0:02:58.7]} 7... Nbd7 {[%clk 0:02:56.3]} 8. e4 {[%clk 0:02:57.1]}
8... e5 {[%clk 0:02:48.4]} 9. cxd5 {[%clk 0:02:41.2]} 9... cxd5 {[%clk
0:02:42.8]} 10. dxe5 {[%clk 0:02:14.3]} 10... Nxe5 {[%clk 0:02:38.9]} 11. Nxe5
{[%clk 0:02:14.2]} 11... Bxe5 {[%clk 0:02:39.8]} 12. Bb5+ {[%clk 0:02:14.2]}
12... Bd7 {[%clk 0:02:40.2]} 13. exd5 {[%clk 0:01:43.2]} 13... Bxb5 {[%clk
0:02:29.7]} 14. Nxb5 {[%clk 0:01:44.1]} 14... Qxd5 {[%clk 0:02:30.3]} 15. O-O
{[%clk 0:01:07.3]} 15... Qxb5 {[%clk 0:02:29.5]} 16. Rfe1 {[%clk 0:01:07.4]}
16... O-O {[%clk 0:02:28.1]} 17. a4 {[%clk 0:01:07.5]} 17... Qd5 {[%clk
0:02:27.7]} 18. Rad1 {[%clk 0:01:07.7]} 18... Rac8 {[%clk 0:02:17.8]} 19. Bc3
{[%clk 0:00:59.2]} 19... Qc5 {[%clk 0:02:08.7]} 20. Rd3 {[%clk 0:00:46.7]} 20...
h6 {[%clk 0:01:40.7]} 21. Qb3 {[%clk 0:00:27.2]} 21... Bxc3 {[%clk 0:01:36.4]}
22. Rxc3 {[%clk 0:00:28.1]} 22... Qa5 {[%clk 0:01:36.9]} 23. Qxb7 {[%clk
0:00:26.6]} 23... Rxc3 {[%clk 0:01:35.6]} 24. bxc3 {[%clk 0:00:27.5]} 24... Qxc3
{[%clk 0:01:35.9]} 25. Re3 {[%clk 0:00:27.3]} 25... Qa1+ {[%clk 0:01:34.2]} 26.
Kg2 {[%clk 0:00:27.3]} 26... Qxa4 {[%clk 0:01:35.1]} 27. Re7 {[%clk 0:00:26.6]}
27... a5 {[%clk 0:01:34]} 28. Re3 {[%clk 0:00:24.8]} 28... Qb4 {[%clk
0:01:25.6]} 29. Qa7 {[%clk 0:00:20.8]} 29... a4 {[%clk 0:01:23.7]} 30. h3 {[%clk
0:00:20.3]} 30... Nd5 {[%clk 0:01:18.3]} 31. Rf3 {[%clk 0:00:20.5]} 31... Qe4
{[%clk 0:01:15.7]} 32. h4 {[%clk 0:00:15.8]} 32... h5 {[%clk 0:01:14.9]} 33. Qa5
{[%clk 0:00:14.8]} 33... g6 {[%clk 0:01:13.8]} 34. Qa7 {[%clk 0:00:14.8]} 34...
Ne7 {[%clk 0:00:59.7]} 35. Qe3 {[%clk 0:00:08.5]} 35... Qxe3 {[%clk 0:00:57.6]}
36. Rxe3 {[%clk 0:00:09.4]} 36... Nf5 {[%clk 0:00:55.4]} 37. Ra3 {[%clk
0:00:10.3]} 37... Ra8 {[%clk 0:00:55.1]} 38. Kf3 {[%clk 0:00:10.2]} 38... Kg7
{[%clk 0:00:54.5]} 39. Ke4 {[%clk 0:00:10.5]} 39... Kf6 {[%clk 0:00:55]} 40. Kd5
{[%clk 0:00:10.1]} 40... Ra5+ {[%clk 0:00:53.1]} 41. Kc4 {[%clk 0:00:10.3]}
41... Ke5 {[%clk 0:00:53.3]} 42. Kb4 {[%clk 0:00:10.5]} 42... Ra7 {[%clk
0:00:53.8]} 43. Rxa4 {[%clk 0:00:08.9]} 43... Rxa4+ {[%clk 0:00:53.4]} 44. Kxa4
{[%clk 0:00:09.8]} 44... Ke4 {[%clk 0:00:54.2]} 45. Kb5 {[%clk 0:00:10.2]} 45...
Kf3 {[%clk 0:00:54.6]} 46. Kc6 {[%clk 0:00:11.1]} 46... Kxf2 {[%clk 0:00:55.1]}
47. Kd7 {[%clk 0:00:12]} 47... Kxg3 {[%clk 0:00:54.5]} 48. Ke8 {[%clk
0:00:12.9]} 48... Nd6+ {[%clk 0:00:54.6]} 49. Kf8 {[%clk 0:00:12.5]} 49... Kxh4
{[%clk 0:00:55.5]} 50. Kg7 {[%clk 0:00:13.4]} 50... Kg3 {[%clk 0:00:55.5]} 51.
Kh8 {[%clk 0:00:14.3]} 51... h4 {[%clk 0:00:56.3]} 52. Kg8 {[%clk 0:00:15.2]}
52... h3 {[%clk 0:00:57.2]} 53. Kg7 {[%clk 0:00:16.1]} 53... h2 {[%clk 0:00:58]}
54. Kh8 {[%clk 0:00:17]} 54... g5 {[%clk 0:00:58.6]} 55. Kg8 {[%clk 0:00:17.9]}
55... g4 {[%clk 0:00:59.5]} 56. Kg7 {[%clk 0:00:18.8]} 56... f5 {[%clk
0:01:00.3]} 57. Kg8 {[%clk 0:00:19.3]} 57... f4 {[%clk 0:01:01.2]} 58. Kh8
{[%clk 0:00:20.2]} 58... Kf3 {[%clk 0:01:02.1]} 59. Kg7 {[%clk 0:00:21.1]} 59...
g3 {[%clk 0:01:03]} 60. Kg8 {[%clk 0:00:22]} 60... g2 {[%clk 0:01:03.9]} 61. Kh8
{[%clk 0:00:22.9]} 61... Ke2 {[%clk 0:01:04.7]} 62. Kg7 {[%clk 0:00:23.8]} 62...
f3 {[%clk 0:01:05.6]} 63. Kg8 {[%clk 0:00:24.7]} 63... f2 {[%clk 0:01:06.5]} 64.
Kh8 {[%clk 0:00:25.6]} 64... f1=Q {[%clk 0:01:04.3]} 65. Kh7 {[%clk 0:00:26.5]}
65... g1=Q {[%clk 0:01:04.3]} 66. Kh8 {[%clk 0:00:27.4]} 66... h1=Q# {[%clk
0:01:04]} 0-1